fUST/lending_fUST_20260127
["ID","MTS","AMOUNT","RATE_DAILY","PERIOD"]
[403726683,1769510790734,-500.0,0.00012427,2]
[403726684,1769510790763,-500.0,0.00012427,2]
[403726685,1769510790863,-500.0,0.00012427,2]
[403726686,1769510790894,-500.0,0.00012427,2]
[403726687,1769510791083,-500.0,0.00012427,2]
[403726688,1769510791343,-96.32654682,0.00012303,2]
[403726689,1769510791362,-500.0,0.00012303,2]
[403726690,1769510791375,-4403.67345318,0.00012303,2]
[403726691,1769510791385,-2596.33654682,0.00012428,2]
[403726692,1769510803767,-3474.7804395,0.00012304,2]
[403726693,1769510803801,-3050.449121,0.00012428,2]
[403726694,1769510803979,-10000.01,0.00012428,2]
[403726695,1769510810993,-10000.01,0.00012428,2]
[403726696,1769510811209,-10000.01,0.00012428,2]
[403726697,1769510853090,-1835.86667497,0.00012304,2]
[403726698,1769510950090,-304.35505596,0.00012304,2]
[403726723,1769511031959,-458.23756058,0.00012181,2]
[403726724,1769511032013,-4541.76243942,0.00012181,2]
[403726725,1769511032023,-594.0,0.00012304,2]
[403726726,1769511032033,-173.7988727,0.00012411,2]
[403726727,1769511032042,-300.0,0.00012429,2]
[403726728,1769511032051,-300.0,0.0001243,2]
[403726729,1769511032061,-300.0,0.0001243,2]
[403726730,1769511032070,-300.0,0.0001243,2]
[403726731,1769511032080,-300.0,0.0001243,2]
[403726732,1769511032089,-300.0,0.0001243,2]
[403726733,1769511032098,-300.0,0.0001243,2]
[403726734,1769511032107,-300.0,0.0001243,2]
[403726735,1769511032117,-300.0,0.0001243,2]
[403726736,1769511032130,-300.0,0.0001243,2]
[403726737,1769511032140,-300.0,0.0001243,2]
[403726738,1769511032150,-300.0,0.0001243,2]
[403726739,1769511032159,-300.0,0.0001243,2]
[403726740,1769511032168,-300.0,0.0001243,2]
[403726741,1769511032178,-300.0,0.0001243,2]
[403726742,1769511032188,-300.0,0.0001243,2]
[403726743,1769511032199,-600.0,0.0001243,2]
[403726744,1769511032219,-48972.87270793,0.0001243,2]
[403726745,1769511032234,-854.08839603,0.0001243,2]
[403726754,1769511038028,-173.03889604,0.0001243,2]
[403726755,1769511038039,-361.74864826,0.00012664,2]
[403726756,1769511038048,-165.92909401,0.00013273,2]
[403726757,1769511038063,-500.0,0.00013273,2]
[403726758,1769511038072,-500.0,0.00013273,2]
[403726759,1769511038082,-500.65981209,0.00013273,2]
[403726760,1769511038091,-500.0,0.00013273,2]
[403726761,1769511038101,-175.05414771,0.00013273,2]
[403726762,1769511038110,-500.0,0.00013273,2]
[403726763,1769511038120,-477.3513425,0.00013273,2]
[403726764,1769511038131,-500.0,0.00013273,2]
[403726765,1769511038142,-500.0,0.00013273,2]
[403726766,1769511038151,-500.0,0.00013273,2]
[403726767,1769511038160,-500.0,0.00013273,2]
[403726768,1769511038169,-500.0,0.00013273,2]
[403726769,1769511038179,-500.0,0.00013273,2]
[403726770,1769511038189,-500.0,0.00013273,2]
[403726771,1769511038200,-500.0,0.00013273,2]
[403726772,1769511038210,-500.0,0.00013273,2]
[403726773,1769511038219,-298.0675623,0.00013451,2]
[403726774,1769511038230,-396.65665172,0.00013467,2]
[403726775,1769511038239,-450.7126308,0.00013482,2]
[403726776,1769511038247,-420.0,0.00013638,2]
[403726777,1769511038257,-300.0,0.00013673,2]
[403726778,1769511038266,-720.0,0.00013673,2]
[403726779,1769511038276,-14198.84959243,0.00013699,2]
[403726780,1769511038292,-26646.79417627,0.00013699,2]
[403726781,1769511038487,-500.0,0.00013699,2]
[403726782,1769511038496,-500.0,0.00013699,2]
[403726783,1769511038505,-500.0,0.00013699,2]
[403726784,1769511038514,-500.0,0.00013699,2]
[403726785,1769511038523,-500.0,0.00013699,2]
[403726786,1769511038532,-500.0,0.00013699,2]
[403726787,1769511038543,-1000.0,0.00013821,2]
[403726788,1769511038552,-1000.0,0.00013821,2]
[403726789,1769511038561,-1000.0,0.00013821,2]
[403726790,1769511038570,-1000.0,0.00013821,2]
[403726791,1769511038580,-1000.0,0.00013821,2]
[403726792,1769511038589,-590.03498975,0.00013821,2]
[403726793,1769511038598,-1000.0,0.00013821,2]
[403726794,1769511038608,-948.22561692,0.00013821,2]
[403726795,1769511038616,-1000.0,0.00013821,2]
[403726796,1769511038626,-1000.0,0.00013821,2]
[403726797,1769511038635,-600.0,0.00014221,2]
[403726798,1769511038644,-727.72467895,0.00014247,2]
[403726799,1769511038654,-1000.0,0.00014247,2]
[403726800,1769511038665,-339.76894093,0.00014247,2]
[403726801,1769511038674,-1000.0,0.00014247,2]
[403726802,1769511038684,-1000.0,0.00014247,2]
[403726803,1769511038694,-1000.0,0.00014247,2]
[403726804,1769511038704,-1500.0,0.00014368,2]
[403726805,1769511038713,-1500.0,0.00014368,2]
[403726806,1769511038723,-1500.0,0.00014368,2]
[403726807,1769511038732,-1500.0,0.00014368,2]
[403726808,1769511038741,-1500.0,0.00014368,2]
[403726809,1769511038761,-1500.0,0.00014368,2]
[403726810,1769511038772,-1500.0,0.00014368,2]
[403726811,1769511038782,-173.7988727,0.00014542,2]
[403726812,1769511038792,-298.0675623,0.00014716,2]
[403726813,1769511038802,-900.0,0.00014768,2]
[403726814,1769511038812,-450.7126308,0.00014776,2]
[403726815,1769511038822,-1500.0,0.00014795,2]
[403726816,1769511038832,-1500.0,0.00014795,2]
[403726817,1769511038842,-1500.0,0.00014795,2]
[403726818,1769511038851,-1500.0,0.00014795,2]
[403726819,1769511038861,-2838.2431933,0.00014828,2]
[403726820,1769511038871,-157.40759664,0.00014868,2]
[403726821,1769511038881,-491.12903521,0.00014915,2]
[403726822,1769511038892,-198.20725914,0.00014915,2]
[403726823,1769511038902,-500.0,0.00014915,2]
[403726824,1769511038912,-500.0,0.00014915,2]
[403726825,1769511038923,-191.37021525,0.00014915,2]
[403726826,1769511038933,-2000.0,0.00014916,2]
[403726827,1769511038944,-2000.0,0.00014916,2]
[403726828,1769511038954,-2000.0,0.00014916,2]
[403726829,1769511038964,-2000.0,0.00014916,2]
[403726830,1769511038974,-2000.0,0.00014916,2]
[403726831,1769511038985,-2000.0,0.00014916,2]
[403726832,1769511038995,-2000.0,0.00014916,2]
[403726833,1769511039005,-587.0,0.00014965,2]
[403726834,1769511039014,-864.0,0.0001504,2]
[403726835,1769511039023,-318.921225,0.00015068,2]
[403726836,1769511039034,-1200.0,0.00015316,2]
[403726837,1769511039044,-2000.0,0.00015342,2]
[403726838,1769511039054,-722.66874227,0.00015342,2]
[403726839,1769511039064,-500.0,0.00015342,2]
[403726840,1769511039074,-2000.0,0.00015342,2]
[403726841,1769511039084,-633.2976582,0.00015416,2]
[403726842,1769511039094,-2500.0,0.00015464,2]
[403726843,1769511039103,-2500.0,0.00015464,2]
[403726844,1769511039112,-2500.0,0.00015464,2]
[403726845,1769511039122,-2500.0,0.00015464,2]
[403726846,1769511039131,-2500.0,0.00015464,2]
[403726847,1769511039141,-2500.0,0.00015464,2]
[403726848,1769511039150,-2500.0,0.00015464,2]
[403726849,1769511039159,-457.1635986,0.00015467,2]
[403726850,1769511039169,-1572.69,0.00015559,2]
[403726851,1769511039178,-1932.46060126,0.0001564,2]
[403726852,1769511039188,-1193.46157293,0.00015676,2]
[403726853,1769511039201,-1500.0,0.00015864,2]
[403726854,1769511039210,-2115.71955138,0.0001589,2]
[403726855,1769511039219,-2500.0,0.0001589,2]
[403726856,1769511039229,-298.0675623,0.0001598,2]
[403726857,1769511039239,-3000.0,0.00016012,2]
[403726858,1769511039248,-1712.6308883,0.00016012,2]
[403726859,1769511039257,-951.8102882,0.00016012,2]
[403726860,1769511039266,-2500.0,0.00016012,2]
[403726861,1769511039276,-2328.85776734,0.00016012,2]
[403726862,1769511039286,-2500.0,0.00016012,2]
[403726863,1769511039295,-450.7126308,0.00016071,2]
[403726864,1769511039305,-2121.70946299,0.00016363,2]
[403726865,1769511039315,-1957.856,0.00016368,2]
[403726866,1769511039324,-160.0,0.00016368,2]
[403726867,1769511039334,-160.0,0.00016368,2]
[403726868,1769511039343,-160.0,0.00016368,2]
[403726869,1769511039353,-278.15468107,0.00016368,2]
[403726870,1769511039363,-2674.60743027,0.00016368,2]
[403726871,1769511039372,-162.380719,0.00016368,2]
[403726872,1769511039381,-668.65185757,0.00016368,2]
[403726873,1769511039391,-250.0,0.00016368,2]
[403726874,1769511039400,-250.0,0.00016368,2]
[403726875,1769511039410,-250.0,0.00016368,2]
[403726876,1769511039419,-250.0,0.00016368,2]
[403726877,1769511039429,-250.0,0.00016368,2]
[403726878,1769511039439,-250.0,0.00016368,2]
[403726879,1769511039450,-250.0,0.00016368,2]
[403726880,1769511039459,-151.0,0.00016368,2]
[403726881,1769511039468,-250.0,0.00016368,2]
[403726882,1769511039478,-201.93286099,0.00016368,2]
[403726883,1769511039488,-151.0,0.00016368,2]
[403726884,1769511039497,-250.00000003,0.00016368,2]
[403726885,1769511039508,-209.40437684,0.00016368,2]
[403726886,1769511039518,-151.0,0.00016368,2]
[403726887,1769511039527,-217.15233878,0.00016368,2]
[403726888,1769511039537,-151.0,0.00016368,2]
[403726889,1769511039547,-225.18697532,0.00016368,2]
[403726890,1769511039557,-151.0,0.00016368,2]
[403726891,1769511039566,-233.51889341,0.00016368,2]
[403726892,1769511039576,-151.0,0.00016368,2]
[403726893,1769511039586,-242.15909246,0.00016368,2]
[403726894,1769511039595,-151.0,0.00016368,2]
[403726895,1769511039605,-30000.0,0.00016368,2]
[403726896,1769511039614,-251.11897888,0.00016368,2]
[403726897,1769511039624,-260.4103811,0.00016368,2]
[403726898,1769511039633,-151.0,0.00016368,2]
[403726899,1769511039642,-270.0455652,0.00016368,2]
[403726900,1769511039652,-151.0,0.00016368,2]
[403726901,1769511039663,-553.64373807,0.00016368,2]
[403726902,1769511039673,-280.03725112,0.00016368,2]
[403726903,1769511039682,-290.39862941,0.00016368,2]
[403726904,1769511039691,-301.1433787,0.00016368,2]
[403726905,1769511039700,-151.0,0.00016368,2]
[403726906,1769511039710,-151.0,0.00016368,2]
[403726907,1769511039719,-151.0,0.00016368,2]
[403726908,1769511039729,-151.0,0.00016368,2]
[403726909,1769511039738,-151.0,0.00016368,2]
[403726910,1769511039749,-164.81135061,0.00016368,2]
[403726911,1769511039758,-646.36,0.00016402,2]
[403726912,1769511039768,-10000.0,0.00016407,2]
[403726913,1769511039778,-1218.12397634,0.00016412,2]
[403726914,1769511039788,-823.0,0.00016422,2]
[403726915,1769511039797,-2030.296672,0.00016423,2]
[403726916,1769511039807,-250.0,0.00016438,2]
[403726919,1769511039816,-597.36308132,0.00016438,2]
[403726921,1769511039825,-155.27552834,0.00016438,2]
[403726922,1769511039835,-3000.0,0.00016438,2]
[403726923,1769511039845,-200.07068234,0.00016473,2]
[403726924,1769511039855,-1118.09358773,0.00016478,2]
[403726925,1769511039864,-324.73,0.000165,2]
[403726926,1769511039874,-603.89,0.000165,2]
[403726927,1769511039883,-617.72,0.000165,2]
[403726928,1769511039893,-1000.0,0.00016544,2]
[403726929,1769511039903,-1000.0,0.0001656,2]
[403726930,1769511039912,-689.15,0.00016602,2]
[403726932,1769511039922,-173.7988727,0.00016673,2]
[403726934,1769511039931,-2773.56790519,0.00016916,2]
[403726936,1769511039940,-693.3919763,0.00016916,2]
[403726938,1769511039950,-31110.0,0.00016916,2]
[403726940,1769511039960,-574.12855637,0.00016916,2]
[403726942,1769511039969,-3500.0,0.00016986,2]
[403726944,1769511039979,-1084.87424796,0.00016987,2]
[403726946,1769511039988,-3315.17103593,0.00017051,2]
[403726948,1769511039997,-1292.72,0.00017184,2]
[403726951,1769511040011,-1041.67,0.00017334,2]
[403726953,1769511040020,-179.35,0.00017334,2]
[403726955,1769511040030,-179.35,0.00017334,2]
[403726957,1769511040039,-179.35,0.00017334,2]
[403726958,1769511040048,-179.35,0.00017334,2]
[403726960,1769511040057,-179.35,0.00017334,2]
[403726962,1769511040066,-179.35,0.00017334,2]
[403726964,1769511040076,-179.37,0.00017334,2]
[403726966,1769511040085,-1041.66666667,0.00017436,2]
[403726968,1769511040095,-2876.18991768,0.00017464,2]
[403726970,1769511040104,-539.84671027,0.00017464,2]
[403726972,1769511040114,-4836.22573926,0.00017464,2]
[403726974,1769511040123,-497.75872377,0.00017464,2]
[403726976,1769511040133,-517.67054547,0.00017467,2]
[403726978,1769511040144,-819.71586935,0.00017534,2]
[403726981,1769511040154,-1939.09,0.00017965,2]
[403726983,1769511040163,-2982.60894464,0.00018012,2]
[403726985,1769511040172,-1103.0,0.00018019,2]
[403726986,1769511040181,-261.736,0.00018032,2]
[403726988,1769511040191,-160.0,0.00018131,3]
[403726990,1769511040203,-1000.0,0.00018198,2]
[403726992,1769511040215,-244.0,0.00018198,2]
[403726994,1769511040225,-156.15197001,0.00018278,2]
[403726996,1769511040235,-281.07354602,0.00018278,2]
[403726998,1769511040244,-444.53050633,0.00018278,2]
[403727000,1769511040254,-800.1549114,0.00018278,2]
[403727003,1769511040263,-1422.49762027,0.00018278,2]
[403727004,1769511040273,-2222.65253167,0.00018278,2]
[403727006,1769511040283,-230.33754732,0.00018278,2]
[403727008,1769511040292,-414.60758518,0.00018278,2]
[403727010,1769511040301,-737.08015143,0.00018278,2]
[403727012,1769511040310,-663.03420719,0.00018278,2]
[403727014,1769511040320,-194.6577276,0.00018356,2]
[403727016,1769511040329,-388.3446173,0.00018356,2]
[403727018,1769511040338,-729.0,0.000184,2]
[403727020,1769511040347,-729.0,0.000184,2]
[403727022,1769511040357,-318.921225,0.00018493,2]
[403727024,1769511040366,-499.68630404,0.00018575,2]
[403727026,1769511040375,-500.0,0.00018652,2]
[403727028,1769511040385,-500.0,0.00018652,2]
[403727030,1769511040394,-150.0,0.00018652,2]
[403727032,1769511040404,-150.0,0.00018652,2]
[403727034,1769511040413,-500.0,0.00018652,2]
[403727036,1769511040423,-500.0,0.00018652,2]
[403727038,1769511040432,-500.0,0.00018652,2]
[403727041,1769511040443,-729.0,0.0001872,2]
[403727042,1769511040452,-2585.45,0.00018746,2]
[403727045,1769511040462,-500.0,0.00018789,2]
[403727046,1769511040471,-500.0,0.00018789,2]
[403727048,1769511040481,-150.0,0.00018789,2]
[403727050,1769511040491,-150.0,0.00018789,2]
[403727053,1769511040501,-500.0,0.00018789,2]
[403727054,1769511040511,-500.0,0.00018789,2]
[403727056,1769511040520,-500.0,0.00018789,2]
[403727058,1769511040530,-501.31416643,0.00018858,5]
[403727060,1769511040539,-303.10001603,0.000189,2]
[403727062,1769511040548,-303.10001603,0.000189,2]
[403727064,1769511040557,-500.0,0.00018926,2]
[403727066,1769511040566,-500.0,0.00018926,2]
[403727068,1769511040576,-286.50377606,0.00018926,2]
[403727070,1769511040585,-150.0,0.00018926,2]
[403727072,1769511040594,-500.0,0.00018926,2]
[403727074,1769511040603,-500.0,0.00018926,2]
[403727076,1769511040612,-500.0,0.00018926,2]
[403727078,1769511040620,-194.6577276,0.00018978,2]
[403727080,1769511040629,-729.0,0.0001904,2]
[403727082,1769511040638,-320.0,0.0001904,2]
[403727084,1769511040648,-729.0,0.0001904,2]
[403727086,1769511040657,-729.0,0.0001904,2]
[403727088,1769511040665,-729.0,0.0001904,2]
[403727090,1769511040674,-500.0,0.00019063,2]
[403727091,1769511040684,-500.0,0.00019063,2]
[403727093,1769511040693,-150.0,0.00019063,2]
[403727095,1769511040703,-637.45973716,0.00019063,2]
[403727097,1769511040712,-500.0,0.00019063,2]
[403727099,1769511040721,-500.0,0.00019063,2]
[403727101,1769511040730,-303.10001603,0.00019089,2]
[403727103,1769511040740,-298.49895837,0.00019089,2]
[403727105,1769511040749,-339.44301533,0.00019172,2]
[403727107,1769511040757,-507.98,0.00019178,2]
[403727109,1769511040766,-1015.96,0.00019178,2]
[403727111,1769511040776,-1015.97,0.00019178,2]
[403727113,1769511040785,-1015.97,0.00019178,2]
[403727115,1769511040795,-1015.96,0.00019178,2]
[403727125,1769511041012,-500.0,0.000192,2]
[403727126,1769511041021,-500.0,0.000192,2]
[403727127,1769511041031,-272.70372137,0.000192,2]
[403727128,1769511041040,-500.0,0.000192,2]
[403727129,1769511041049,-500.0,0.000192,2]
[403727130,1769511041058,-150.0,0.000192,2]
[403727131,1769511041067,-150.0,0.000192,2]
[403727132,1769511041075,-150.0,0.000192,2]
[403727133,1769511041084,-150.0,0.000192,2]
[403727134,1769511041093,-150.0,0.000192,2]
[403727135,1769511041101,-150.0,0.000192,2]
[403727136,1769511041110,-150.0,0.000192,2]
[403727137,1769511041119,-500.0,0.000192,2]
[403727138,1769511041128,-150.0,0.000192,2]
[403727139,1769511041140,-206.35919753,0.000192,2]
[403727140,1769511041149,-303.10001603,0.00019278,2]
[403727141,1769511041158,-157.69654565,0.00019288,30]
[403727142,1769511041167,-157.69654565,0.00019288,30]
[403727143,1769511041176,-3460.48184806,0.000193,2]
[403727144,1769511041185,-3460.48184804,0.000193,2]
[403727145,1769511041194,-3460.48184804,0.000193,2]
[403727146,1769511041207,-3460.48184804,0.000193,2]
[403727147,1769511041216,-500.0,0.00019337,2]
[403727148,1769511041225,-500.0,0.00019337,2]
[403727149,1769511041234,-500.0,0.00019337,2]
[403727150,1769511041243,-500.0,0.00019337,2]
[403727151,1769511041251,-256.821356,0.00019337,7]
[403727152,1769511041260,-150.0,0.00019337,2]
[403727153,1769511041269,-150.0,0.00019337,2]
[403727154,1769511041278,-150.0,0.00019337,2]
[403727156,1769511041288,-150.0,0.00019337,2]
[403727158,1769511041297,-500.0,0.00019337,2]
[403727160,1769511041306,-729.0,0.0001936,2]
[403727162,1769511041315,-729.0,0.0001936,2]
[403727164,1769511041324,-553.0,0.0001936,2]
[403727166,1769511041333,-578.17749234,0.00019467,2]
[403727168,1769511041343,-1140.986484,0.00019467,7]
[403727170,1769511041352,-303.10001603,0.00019467,2]
[403727172,1769511041361,-800.0,0.00019473,2]
[403727174,1769511041370,-500.0,0.00019474,2]
[403727176,1769511041379,-500.0,0.00019474,2]
[403727178,1769511041389,-500.0,0.00019474,2]
[403727181,1769511041399,-500.0,0.00019474,2]
[403727183,1769511041409,-242.45970376,0.00019474,2]
[403727185,1769511041418,-200.0,0.00019474,2]
[403727187,1769511041427,-200.0,0.00019474,2]
[403727189,1769511041436,-200.0,0.00019474,2]
[403727191,1769511041445,-511.32015771,0.00019474,2]
[403727193,1769511041454,-3231.81,0.00019527,2]
[403727195,1769511041463,-11413.783314,0.00019591,2]
[403727197,1769511041473,-9496.380093,0.00019591,7]
[403727199,1769511041485,-168.0,0.00019599,2]
[403727201,1769511041495,-1493.253775,0.00019599,7]
[403727203,1769511041504,-153.5789033,0.000196,2]
[403727205,1769511041513,-1260209.21673722,0.000196,2]
[403727223,1769511041664,-6471.49915124,0.000196,2]
[403727225,1769511041675,-875.31805394,0.000196,2]
[403727242,1769511041830,-73664.17846115,0.000196,2]
[403727280,1769511042191,-3e-08,0.00016368,2]
[403727415,1769511043461,-22.01147399,0.00016368,2]
[403727546,1769511046168,-128.98852598,0.00016368,2]
[403727547,1769511046179,-151.0,0.00016368,2]
[403727548,1769511046188,-151.0,0.00016368,2]
[403727549,1769511046198,-151.0,0.00016368,2]
[403727550,1769511046211,-151.0,0.00016368,2]
[403727551,1769511046220,-117.20629307,0.00016368,2]
[403727552,1769511046231,-33.79370693,0.00016368,2]
[403727554,1769511046241,-151.0,0.00016368,2]
[403727556,1769511046250,-151.0,0.00016368,2]
[403727558,1769511046259,-151.0,0.00016368,2]
[403727560,1769511046269,-162.489025,0.00018832,2]
[403727562,1769511046279,-1266.56139339,0.000196,2]
[403727574,1769511120055,226.08615759,0.0003496,120]
[403727575,1769511255966,500.0,0.00035003,120]
[403727576,1769511270723,500.0,0.00035003,120]
[403727577,1769511284948,219.27643355,0.00035003,120]
[403727578,1769511659215,-207.89267664,0.00013173,2]
[403727579,1769511659241,-227.19274606,0.00013173,2]
[403727580,1769511659263,-181.35254114,0.00013173,2]
[403727581,1769511659274,-26.5401355,0.00013173,2]
[403727582,1769511659286,-408.5452872,0.00013173,2]
[403727583,1769511685600,500.0,0.00034902,120]
[403727584,1769511687421,567.10011397,0.00034902,120]
[403727585,1769511806483,207.89267664,0.00013073,2]
[403727586,1769511821748,5000.0,0.00013173,2]
[403727587,1769511844094,4792.11732336,0.00013173,2]
[403727588,1769511844116,207.88267664,0.00013173,2]
[403727589,1769511870422,5000.0,0.00013173,2]
[403727590,1769511893729,4792.12732336,0.00013173,2]
[403727591,1769511893752,207.87267664,0.00013173,2]
[403727592,1769511916084,5000.0,0.00013173,2]
[403727594,1769511934622,-171.9145773,0.00013173,2]
[403727595,1769511939164,5000.0,0.00013173,2]
[403727596,1769511958895,207.89267664,0.00013073,2]
[403727597,1769511961518,4448.28816876,0.00013173,2]
[403727598,1769511961544,551.71183124,0.00013173,2]
[403727599,1769511983690,5000.0,0.00013173,2]
[403727600,1769512005907,4448.29816876,0.00013173,2]
[403727601,1769512005930,551.70183124,0.00013173,2]
[403727602,1769512028158,5000.0,0.00013173,2]
[403727603,1769512050446,4448.30816876,0.00013173,2]
[403727604,1769512050469,551.69183124,0.00013173,2]
[403727605,1769512051125,-312.51214118,0.00013235,2]
[403727606,1769512051146,-52.6437579,0.00013272,2]
[403727607,1769512072709,5000.0,0.00013173,2]
[403727609,1769512094984,4448.31816876,0.00013173,2]
[403727610,1769512095010,551.68183124,0.00013173,2]
[403727611,1769512117897,5000.0,0.00013173,2]
[403727612,1769512140760,4448.32816876,0.00013173,2]
[403727613,1769512140784,551.67183124,0.00013173,2]
[403727614,1769512162996,5000.0,0.00013173,2]
[403727615,1769512185269,4448.33816876,0.00013173,2]
[403727616,1769512185291,551.66183124,0.00013173,2]
[403727617,1769512207649,5000.0,0.00013173,2]
[403727639,1769512232220,-614.35401849,0.00013139,2]
[403727655,1769512238375,-2530.46,0.00013139,2]
[403727656,1769512238482,-1855.18598151,0.00013139,2]
[403727657,1769512238492,-1196.0,0.00013272,2]
[403727658,1769512238501,-608.0,0.00013272,2]
[403727659,1769512238511,-500.0,0.00013273,2]
[403727660,1769512238520,-522.6486575,0.00013273,2]
[403727661,1769512238529,-500.0,0.00013273,2]
[403727662,1769512238729,-500.0,0.00013273,2]
[403727663,1769512238738,-300.0,0.00013696,2]
[403727664,1769512238748,-50000.0,0.00013697,2]
[403727665,1769512238757,-300.0,0.00013697,2]
[403727666,1769512238767,-300.0,0.00013697,2]
[403727667,1769512238776,-300.0,0.00013697,2]
[403727668,1769512238786,-300.0,0.00013697,2]
[403727669,1769512238796,-1000.0,0.00013699,2]
[403727670,1769512238805,-500.0,0.00013699,2]
[403727671,1769512238815,-1000.0,0.00013821,2]
[403727672,1769512238824,-1000.0,0.00013821,2]
[403727673,1769512238834,-1000.0,0.00013821,2]
[403727674,1769512238843,-1000.0,0.00014247,2]
[403727675,1769512238852,-1500.0,0.00014368,2]
[403727676,1769512238861,-1500.0,0.00014368,2]
[403727677,1769512238870,-1500.0,0.00014368,2]
[403727678,1769512238880,-300.0,0.00014655,2]
[403727679,1769512238890,-300.0,0.00014655,2]
[403727680,1769512238899,-300.0,0.00014655,2]
[403727681,1769512238908,-300.0,0.00014655,2]
[403727682,1769512238918,-300.0,0.00014655,2]
[403727683,1769512238929,-300.0,0.00014655,2]
[403727684,1769512238938,-300.0,0.00014655,2]
[403727685,1769512238947,-300.0,0.00014655,2]
[403727686,1769512238957,-300.0,0.00014655,2]
[403727687,1769512238966,-300.0,0.00014655,2]
[403727688,1769512238975,-300.0,0.00014655,2]
[403727689,1769512238984,-300.0,0.00014655,2]
[403727690,1769512238994,-300.0,0.00014655,2]
[403727691,1769512239003,-300.0,0.00014655,2]
[403727692,1769512239011,-300.0,0.00014655,2]
[403727693,1769512239021,-1000.0,0.00014795,2]
[403727694,1769512239030,-543.93892741,0.00014916,2]
[403727695,1769512239039,-2056.86628974,0.00014916,2]
[403727696,1769512239049,-2000.0,0.00014916,2]
[403727697,1769512239057,-600.0,0.00014947,2]
[403727698,1769512239067,-300.0,0.0001501,2]
[403727699,1769512239075,-420.0,0.0001501,2]
[403727700,1769512239084,-300.0,0.0001501,2]
[403727701,1769512239093,-368.76432659,0.00015235,2]
[403727702,1769512239103,-169.70744721,0.00015327,2]
[403727703,1769512239112,-500.0,0.00015464,2]
[403727704,1769512239121,-500.0,0.00015464,2]
[403727705,1769512239131,-2500.0,0.00015464,2]
[403727706,1769512239141,-179.9820018,0.00015739,2]
[403727707,1769512239150,-169.7074472,0.00015848,2]
[403727708,1769512239159,-475.0,0.00015864,2]
[403727709,1769512239169,-475.0,0.00015864,2]
[403727710,1769512239179,-150.0,0.00016,2]
[403727711,1769512239194,-477.966452,0.00016002,2]
[403727712,1769512239204,-3000.0,0.00016012,2]
[403727713,1769512239213,-295.34,0.00016338,2]
[403727714,1769512239223,-200.0,0.00016438,2]
[403727715,1769512239232,-720.0,0.00016442,2]
[403727716,1769512239242,-587.0,0.0001645,2]
[403727717,1769512239251,-500.0,0.00016462,2]
[403727718,1769512239260,-201.93286099,0.00016462,2]
[403727719,1769512239269,-209.40437684,0.00016462,2]
[403727720,1769512239279,-217.15233878,0.00016462,2]
[403727721,1769512239288,-225.18697532,0.00016462,2]
[403727722,1769512239296,-287.94827251,0.00016462,2]
[403727723,1769512239305,-636.45873503,0.00016462,2]
[403727724,1769512239315,-151.0,0.00016462,2]
[403727725,1769512239324,-151.0,0.00016462,2]
[403727726,1769512239334,-1000.0,0.0001656,2]
[403727727,1769512239343,-500.0,0.00016728,2]
[403727728,1769512239352,-500.0,0.00016728,2]
[403727729,1769512239360,-500.0,0.00016728,2]
[403727730,1769512239371,-500.0,0.00016728,2]
[403727731,1769512239380,-500.0,0.00016728,2]
[403727732,1769512239389,-500.0,0.00016728,2]
[403727733,1769512239398,-500.0,0.00016728,2]